[Event "Betsys MČR v online bleskovém šachu 2021"]
[Site "Chess.com"]
[Date "2021.04.17"]
[Round "8"]
[White "JohnnyDuck64"]
[Black "clarissamcclellan"]
[Result "1-0"]
[WhiteElo "2103"]
[BlackElo "1822"]
[TimeControl "180+1"]
[EndTime "10:20:55 PDT"]
[Termination "Uživatel JohnnyDuck64 zvítězil po vzdání soupeře"]

1. e4 {[%clk 0:02:53.5]} 1... c5 {[%clk 0:02:54.8]} 2. Nf3 {[%clk 0:02:53.1]}
2... e6 {[%clk 0:02:53.2]} 3. d4 {[%clk 0:02:53]} 3... cxd4 {[%clk 0:02:52.4]}
4. Nxd4 {[%clk 0:02:53.9]} 4... Nf6 {[%clk 0:02:52.6]} 5. Nc3 {[%clk 0:02:53.3]}
5... Nc6 {[%clk 0:02:52.4]} 6. a3 {[%clk 0:02:52.3]} 6... Be7 {[%clk 0:02:50.8]}
7. f4 {[%clk 0:02:51.5]} 7... a6 {[%clk 0:02:37.1]} 8. Be3 {[%clk 0:02:51]} 8...
d5 {[%clk 0:02:36.3]} 9. e5 {[%clk 0:02:39.3]} 9... Nd7 {[%clk 0:02:34.5]} 10.
Qd2 {[%clk 0:02:31.9]} 10... Qc7 {[%clk 0:02:33]} 11. Be2 {[%clk 0:02:24]} 11...
b5 {[%clk 0:02:32.2]} 12. Nxc6 {[%clk 0:02:13.6]} 12... Qxc6 {[%clk 0:02:29.6]}
13. Bf3 {[%clk 0:02:14.1]} 13... Bb7 {[%clk 0:02:21.5]} 14. Ne2 {[%clk
0:02:02.2]} 14... Nb6 {[%clk 0:02:11.3]} 15. Nd4 {[%clk 0:01:58.3]} 15... Qc7
{[%clk 0:02:10.6]} 16. b3 {[%clk 0:01:53.8]} 16... Nd7 {[%clk 0:01:55.8]} 17.
O-O {[%clk 0:01:49.7]} 17... Nb8 {[%clk 0:01:54]} 18. f5 {[%clk 0:01:40.2]}
18... Nc6 {[%clk 0:01:52.4]} 19. fxe6 {[%clk 0:01:34.5]} 19... Nxe5 {[%clk
0:01:46.8]} 20. exf7+ {[%clk 0:01:28.9]} 20... Nxf7 {[%clk 0:01:44.3]} 21. Bf4
{[%clk 0:01:05.6]} 21... Qb6 {[%clk 0:01:33.5]} 22. Rae1 {[%clk 0:00:57.5]}
22... Rd8 {[%clk 0:01:24]} 23. Kh1 {[%clk 0:00:52.8]} 23... Qf6 {[%clk 0:01:06]}
24. Re6 {[%clk 0:00:34.5]} 24... Qh4 {[%clk 0:00:46]} 25. g3 {[%clk 0:00:30]}
25... Qh3 {[%clk 0:00:40.9]} 26. Bg2 {[%clk 0:00:29.3]} 26... Qg4 {[%clk
0:00:36.7]} 27. h3 {[%clk 0:00:25.2]} 27... Qh5 {[%clk 0:00:32.9]} 28. Rfe1
{[%clk 0:00:23.1]} 28... Rd7 {[%clk 0:00:29.6]} 29. g4 {[%clk 0:00:19.1]} 29...
Qh4 {[%clk 0:00:26.2]} 30. Nf5 {[%clk 0:00:18.6]} 1-0

[Event "Betsys MČR v online bleskovém šachu 2021"]
[Site "Chess.com"]
[Date "2021.04.17"]
[Round "8"]
[White "indebol"]
[Black "feela1"]
[Result "1-0"]
[WhiteElo "1541"]
[BlackElo "1363"]
[TimeControl "180+1"]
[EndTime "10:20:55 PDT"]
[Termination "Uživatel indebol zvítězil na čas"]

1. e4 {[%clk 0:02:59.8]} 1... e5 {[%clk 0:02:59.8]} 2. Nf3 {[%clk 0:02:58.7]}
2... Nc6 {[%clk 0:02:58.8]} 3. d4 {[%clk 0:02:58.9]} 3... exd4 {[%clk
0:02:57.1]} 4. Nxd4 {[%clk 0:02:59.8]} 4... Nxd4 {[%clk 0:02:55.9]} 5. Qxd4
{[%clk 0:03:00.7]} 5... Qe7 {[%clk 0:02:53.2]} 6. Nc3 {[%clk 0:02:59.5]} 6...
Qc5 {[%clk 0:02:46.8]} 7. Be3 {[%clk 0:02:55.6]} 7... Qxd4 {[%clk 0:02:42.7]} 8.
Bxd4 {[%clk 0:02:56.5]} 8... Ne7 {[%clk 0:02:38.5]} 9. Nb5 {[%clk 0:02:52.4]}
9... Kd8 {[%clk 0:02:28.8]} 10. Bc4 {[%clk 0:02:49.1]} 10... f6 {[%clk
0:02:27.3]} 11. O-O-O {[%clk 0:02:47.5]} 11... a6 {[%clk 0:02:26.7]} 12. Nc3
{[%clk 0:02:25.9]} 12... Nc6 {[%clk 0:02:18.7]} 13. Be3 {[%clk 0:02:22]} 13...
Bb4 {[%clk 0:02:17.1]} 14. Nd5 {[%clk 0:02:14.3]} 14... Be7 {[%clk 0:02:04.1]}
15. f3 {[%clk 0:02:13.6]} 15... Ne5 {[%clk 0:01:54.5]} 16. Bb3 {[%clk
0:02:12.5]} 16... Bd6 {[%clk 0:01:41.8]} 17. Rhe1 {[%clk 0:02:04.7]} 17... Ke8
{[%clk 0:01:37.6]} 18. h3 {[%clk 0:01:54]} 18... h6 {[%clk 0:01:27.5]} 19. c4
{[%clk 0:01:53.8]} 19... b6 {[%clk 0:01:20.2]} 20. Nxb6 {[%clk 0:01:43.4]} 20...
cxb6 {[%clk 0:01:14.8]} 21. Rxd6 {[%clk 0:01:43.4]} 21... b5 {[%clk 0:01:09.1]}
22. cxb5 {[%clk 0:01:38.7]} 22... axb5 {[%clk 0:01:08.4]} 23. Red1 {[%clk
0:01:29.6]} 23... Nc4 {[%clk 0:00:53.8]} 24. Bxc4 {[%clk 0:01:24]} 24... bxc4
{[%clk 0:00:53]} 25. a3 {[%clk 0:01:18.7]} 25... Ra6 {[%clk 0:00:52.1]} 26. Rxa6
{[%clk 0:01:13.5]} 26... Bxa6 {[%clk 0:00:51]} 27. Rd6 {[%clk 0:01:13.2]} 27...
Bb5 {[%clk 0:00:40.2]} 28. Rb6 {[%clk 0:01:09.7]} 28... Kf7 {[%clk 0:00:20.3]}
29. Rxb5 {[%clk 0:01:07.4]} 29... Rc8 {[%clk 0:00:19.9]} 30. Kc2 {[%clk
0:01:03.3]} 30... Ke7 {[%clk 0:00:19.7]} 31. a4 {[%clk 0:00:59.2]} 31... Ra8
{[%clk 0:00:18.3]} 32. a5 {[%clk 0:00:59]} 32... Kd8 {[%clk 0:00:15.2]} 33. Bb6+
{[%clk 0:00:58.3]} 33... Kc8 {[%clk 0:00:15]} 34. Rc5+ {[%clk 0:00:57.7]} 34...
Kb7 {[%clk 0:00:14.5]} 35. Rxc4 {[%clk 0:00:58.6]} 35... Ra6 {[%clk 0:00:07.2]}
36. Rc7+ {[%clk 0:00:58.4]} 36... Kb8 {[%clk 0:00:05.4]} 37. Rxd7 {[%clk
0:00:57.9]} 37... Kc8 {[%clk 0:00:04.6]} 38. Rxg7 {[%clk 0:00:57.5]} 1-0

[Event "Betsys MČR v online bleskovém šachu 2021"]
[Site "Chess.com"]
[Date "2021.04.17"]
[Round "8"]
[White "PetrVelicka"]
[Black "jarda1955"]
[Result "1-0"]
[WhiteElo "2359"]
[BlackElo "1989"]
[TimeControl "180+1"]
[EndTime "10:20:56 PDT"]
[Termination "Uživatel PetrVelicka zvítězil na čas"]

1. e4 {[%clk 0:03:00.9]} 1... c5 {[%clk 0:02:58]} 2. Nf3 {[%clk 0:03:00.3]} 2...
d6 {[%clk 0:02:56.8]} 3. d4 {[%clk 0:03:00.2]} 3... cxd4 {[%clk 0:02:56.7]} 4.
Nxd4 {[%clk 0:03:00.1]} 4... Nf6 {[%clk 0:02:56.8]} 5. Nc3 {[%clk 0:02:58.1]}
5... a6 {[%clk 0:02:56]} 6. Be3 {[%clk 0:02:56.5]} 6... e5 {[%clk 0:02:47.3]} 7.
Nb3 {[%clk 0:02:56]} 7... Be6 {[%clk 0:02:46.6]} 8. Kd2 {[%clk 0:02:55.9]} 8...
d5 {[%clk 0:02:32.9]} 9. exd5 {[%clk 0:02:54.6]} 9... Nxd5 {[%clk 0:02:31.3]}
10. Nxd5 {[%clk 0:02:54.6]} 10... Qxd5+ {[%clk 0:02:29.3]} 11. Kc1 {[%clk
0:02:54.2]} 11... Nc6 {[%clk 0:02:21.1]} 12. Qxd5 {[%clk 0:02:52.7]} 12... Bxd5
{[%clk 0:02:19.8]} 13. f3 {[%clk 0:02:52.8]} 13... O-O-O {[%clk 0:02:11.8]} 14.
c3 {[%clk 0:02:45.2]} 14... Be6 {[%clk 0:01:57.5]} 15. Be2 {[%clk 0:02:37.6]}
15... f5 {[%clk 0:01:54.7]} 16. Rd1 {[%clk 0:02:36.3]} 16... Be7 {[%clk
0:01:52.7]} 17. Rd2 {[%clk 0:02:23.4]} 17... h6 {[%clk 0:01:44.8]} 18. Kd1
{[%clk 0:02:22]} 18... Rxd2+ {[%clk 0:01:43.9]} 19. Kxd2 {[%clk 0:02:21.2]}
19... Bg5 {[%clk 0:01:43.7]} 20. Bxg5 {[%clk 0:02:18.2]} 20... hxg5 {[%clk
0:01:42.5]} 21. h3 {[%clk 0:02:18.8]} 21... Ne7 {[%clk 0:01:31.1]} 22. Ke1
{[%clk 0:02:12.8]} 22... Bxb3 {[%clk 0:01:29.7]} 23. axb3 {[%clk 0:02:11.4]}
23... Nd5 {[%clk 0:01:16.1]} 24. Ra5 {[%clk 0:02:07.8]} 24... Nf4 {[%clk
0:01:12]} 25. Rxe5 {[%clk 0:02:05]} 25... Nxg2+ {[%clk 0:01:10.8]} 26. Kf2
{[%clk 0:02:01.7]} 26... Nf4 {[%clk 0:01:00.5]} 27. Rxf5 {[%clk 0:01:56.9]}
27... Nxe2 {[%clk 0:00:56.2]} 28. Kxe2 {[%clk 0:01:55.9]} 28... Rxh3 {[%clk
0:00:56]} 29. Rxg5 {[%clk 0:01:55.8]} 29... Rh2+ {[%clk 0:00:55.9]} 30. Kd3
{[%clk 0:01:55.3]} 30... Rxb2 {[%clk 0:00:54.9]} 31. b4 {[%clk 0:01:55.5]} 31...
Rf2 {[%clk 0:00:54.1]} 32. Rf5 {[%clk 0:01:55]} 32... Kd7 {[%clk 0:00:51.8]} 33.
Rf7+ {[%clk 0:01:53.9]} 33... Kc6 {[%clk 0:00:51]} 34. f4 {[%clk 0:01:50.5]}
34... g5 {[%clk 0:00:47.3]} 35. f5 {[%clk 0:01:49.5]} 35... g4 {[%clk
0:00:47.2]} 36. Ke4 {[%clk 0:01:48.9]} 36... g3 {[%clk 0:00:46.5]} 37. Rg7
{[%clk 0:01:48.2]} 37... g2 {[%clk 0:00:46.2]} 38. Ke5 {[%clk 0:01:48.4]} 38...
Re2+ {[%clk 0:00:43.5]} 39. Kf6 {[%clk 0:01:46.9]} 39... Kd5 {[%clk 0:00:42.8]}
40. Rg4 {[%clk 0:01:44.4]} 40... Rf2 {[%clk 0:00:33.5]} 41. Kg6 {[%clk 0:01:44]}
41... Ke5 {[%clk 0:00:32.7]} 42. Rg5 {[%clk 0:01:44.2]} 42... Ke4 {[%clk
0:00:26.9]} 43. f6 {[%clk 0:01:42.1]} 43... Kf4 {[%clk 0:00:14.6]} 44. f7 {[%clk
0:01:40.3]} 44... Ke3 {[%clk 0:00:13.9]} 45. Kg7 {[%clk 0:01:36.6]} 45... b5
{[%clk 0:00:09.3]} 46. f8=Q {[%clk 0:01:34.7]} 46... Rxf8 {[%clk 0:00:08.6]} 47.
Kxf8 {[%clk 0:01:34.6]} 47... Kf2 {[%clk 0:00:09]} 48. Ke7 {[%clk 0:01:32.9]}
48... g1=Q {[%clk 0:00:05.7]} 49. Rxg1 {[%clk 0:01:29.4]} 49... Kxg1 {[%clk
0:00:05.6]} 50. Kd6 {[%clk 0:01:29.3]} 50... Kf2 {[%clk 0:00:06.2]} 51. Kc5
{[%clk 0:01:29.2]} 51... Ke3 {[%clk 0:00:07.1]} 52. Kb6 {[%clk 0:01:29]} 52...
Kd3 {[%clk 0:00:07.2]} 53. Kxa6 {[%clk 0:01:29.1]} 53... Kxc3 {[%clk 0:00:05.2]}
54. Kxb5 {[%clk 0:01:28]} 1-0

[Event "Betsys MČR v online bleskovém šachu 2021"]
[Site "Chess.com"]
[Date "2021.04.17"]
[Round "8"]
[White "Maximon2012"]
[Black "vaclavbelaska"]
[Result "0-1"]
[WhiteElo "1076"]
[BlackElo "1401"]
[TimeControl "180+1"]
[EndTime "10:20:56 PDT"]
[Termination "Uživatel vaclavbelaska zvítězil matem"]

1. g3 {[%clk 0:02:58.3]} 1... d5 {[%clk 0:02:56.9]} 2. Bg2 {[%clk 0:02:57.6]}
2... e5 {[%clk 0:02:53.8]} 3. Nf3 {[%clk 0:02:57.5]} 3... Nc6 {[%clk 0:02:49.4]}
4. d3 {[%clk 0:02:56.1]} 4... Nf6 {[%clk 0:02:45.1]} 5. Bg5 {[%clk 0:02:54.5]}
5... Be7 {[%clk 0:02:42.5]} 6. O-O {[%clk 0:02:52.4]} 6... O-O {[%clk
0:02:38.9]} 7. Qd2 {[%clk 0:02:51.1]} 7... Ng4 {[%clk 0:02:30.9]} 8. Bxe7 {[%clk
0:02:47.9]} 8... Qxe7 {[%clk 0:02:27.6]} 9. Nc3 {[%clk 0:02:38.2]} 9... Nf6
{[%clk 0:02:15.7]} 10. d4 {[%clk 0:02:34.1]} 10... e4 {[%clk 0:02:08.1]} 11. Ng5
{[%clk 0:02:30.3]} 11... h6 {[%clk 0:02:06.4]} 12. Nh3 {[%clk 0:02:29.7]} 12...
Bxh3 {[%clk 0:02:03.2]} 13. Bxh3 {[%clk 0:02:27.9]} 13... Nd8 {[%clk 0:01:54]}
14. Qf4 {[%clk 0:02:24.8]} 14... c6 {[%clk 0:01:52.1]} 15. e3 {[%clk 0:02:23.1]}
15... Ne6 {[%clk 0:01:50.3]} 16. Bxe6 {[%clk 0:02:21.3]} 16... Qxe6 {[%clk
0:01:46.2]} 17. Kg2 {[%clk 0:02:14.1]} 17... Rac8 {[%clk 0:01:42.3]} 18. Ne2
{[%clk 0:02:12.2]} 18... g5 {[%clk 0:01:37.8]} 19. Qe5 {[%clk 0:02:05.8]} 19...
Qxe5 {[%clk 0:01:36.2]} 20. dxe5 {[%clk 0:02:05.3]} 20... Nd7 {[%clk 0:01:36.2]}
21. f4 {[%clk 0:01:52.2]} 21... exf3+ {[%clk 0:01:34.6]} 22. Rxf3 {[%clk
0:01:50.5]} 22... Nxe5 {[%clk 0:01:34.2]} 23. Rf5 {[%clk 0:01:45.7]} 23... f6
{[%clk 0:01:32.5]} 24. Nd4 {[%clk 0:01:38.3]} 24... Rce8 {[%clk 0:01:28.6]} 25.
Kf2 {[%clk 0:01:32.9]} 25... Kg7 {[%clk 0:01:21.9]} 26. Nf3 {[%clk 0:01:29.5]}
26... Ng4+ {[%clk 0:01:18.2]} 27. Kg2 {[%clk 0:01:17.1]} 27... Nxe3+ {[%clk
0:01:16.9]} 28. Kf2 {[%clk 0:01:13.4]} 28... Nxf5 {[%clk 0:01:16.8]} 29. Ng1
{[%clk 0:01:09]} 29... Re7 {[%clk 0:01:13.5]} 30. Kf3 {[%clk 0:01:05.3]} 30...
Rfe8 {[%clk 0:01:12.3]} 31. Kg4 {[%clk 0:00:59.9]} 31... Kg6 {[%clk 0:01:11.4]}
32. Nf3 {[%clk 0:00:54.7]} 32... Re4+ {[%clk 0:01:01.2]} 33. Kh3 {[%clk
0:00:52.1]} 33... g4+ {[%clk 0:00:59.5]} 34. Kg2 {[%clk 0:00:50.2]} 34... Re2+
{[%clk 0:00:56.5]} 35. Kf1 {[%clk 0:00:45.2]} 35... gxf3 {[%clk 0:00:49.3]} 36.
g4 {[%clk 0:00:37.9]} 36... Ne3+ {[%clk 0:00:47.1]} 37. Kg1 {[%clk 0:00:27]}
37... Rg2+ {[%clk 0:00:41.4]} 38. Kh1 {[%clk 0:00:23]} 38... Nxg4 {[%clk
0:00:38.8]} 39. Rg1 {[%clk 0:00:16.5]} 39... Rxh2# {[%clk 0:00:37.3]} 0-1

[Event "Betsys MČR v online bleskovém šachu 2021"]
[Site "Chess.com"]
[Date "2021.04.17"]
[Round "8"]
[White "AlenaSouralova"]
[Black "handlovskyjachym"]
[Result "0-1"]
[WhiteElo "919"]
[BlackElo "1332"]
[TimeControl "180+1"]
[EndTime "10:20:56 PDT"]
[Termination "Uživatel handlovskyjachym zvítězil matem"]

1. e4 {[%clk 0:02:55.5]} 1... c5 {[%clk 0:02:59.1]} 2. Bc4 {[%clk 0:02:53.5]}
2... d6 {[%clk 0:02:58.3]} 3. Nf3 {[%clk 0:02:48.7]} 3... Nf6 {[%clk 0:02:57.6]}
4. d3 {[%clk 0:02:43.2]} 4... g6 {[%clk 0:02:57.2]} 5. Be3 {[%clk 0:02:40.8]}
5... Bg7 {[%clk 0:02:56.9]} 6. Nc3 {[%clk 0:02:38.2]} 6... O-O {[%clk
0:02:56.5]} 7. Qd2 {[%clk 0:02:37.5]} 7... Nc6 {[%clk 0:02:53.5]} 8. O-O-O
{[%clk 0:02:36.9]} 8... Bd7 {[%clk 0:02:52.9]} 9. h4 {[%clk 0:02:25.4]} 9... Ng4
{[%clk 0:02:52.4]} 10. h5 {[%clk 0:02:19.2]} 10... Nxe3 {[%clk 0:02:51.2]} 11.
Qxe3 {[%clk 0:02:17.9]} 11... a6 {[%clk 0:02:47.6]} 12. hxg6 {[%clk 0:02:08]}
12... hxg6 {[%clk 0:02:27.8]} 13. Qf4 {[%clk 0:02:02.9]} 13... e5 {[%clk
0:02:21.3]} 14. Qh4 {[%clk 0:02:02]} 14... Qxh4 {[%clk 0:02:20.7]} 15. Rxh4
{[%clk 0:02:00.4]} 15... b5 {[%clk 0:02:06.1]} 16. Bd5 {[%clk 0:01:51]} 16...
Rac8 {[%clk 0:02:01.5]} 17. Bxc6 {[%clk 0:01:49.4]} 17... Rxc6 {[%clk
0:01:54.6]} 18. Nd5 {[%clk 0:01:48.7]} 18... Re8 {[%clk 0:01:44.6]} 19. Ng5
{[%clk 0:01:42.3]} 19... Be6 {[%clk 0:01:39.7]} 20. Nxe6 {[%clk 0:01:20.1]}
20... fxe6 {[%clk 0:01:38.4]} 21. Ne3 {[%clk 0:01:10.3]} 21... Rf8 {[%clk
0:01:31.7]} 22. f3 {[%clk 0:01:07.7]} 22... Rd8 {[%clk 0:01:21.3]} 23. Rf1
{[%clk 0:00:53.5]} 23... d5 {[%clk 0:01:21.1]} 24. f4 {[%clk 0:00:50.4]} 24...
exf4 {[%clk 0:01:03.9]} 25. Rfxf4 {[%clk 0:00:45.9]} 25... dxe4 {[%clk
0:01:02.4]} 26. dxe4 {[%clk 0:00:44.7]} 26... Rcd6 {[%clk 0:00:57.4]} 27. Rfg4
{[%clk 0:00:30.8]} 27... Kf7 {[%clk 0:00:47.3]} 28. Rf4+ {[%clk 0:00:23.3]}
28... Kg8 {[%clk 0:00:42.5]} 29. Rfg4 {[%clk 0:00:20.9]} 29... Kf7 {[%clk
0:00:37.5]} 30. Rg5 {[%clk 0:00:20.4]} 30... Bf6 {[%clk 0:00:35.7]} 31. Rxc5
{[%clk 0:00:20]} 31... Bxh4 {[%clk 0:00:32.9]} 32. Rc7+ {[%clk 0:00:17.7]} 32...
Kf8 {[%clk 0:00:29.7]} 33. Rh7 {[%clk 0:00:16.5]} 33... Bg5 {[%clk 0:00:29.2]}
34. Rh3 {[%clk 0:00:13.5]} 34... Bxe3+ {[%clk 0:00:27.7]} 35. Rxe3 {[%clk
0:00:13.9]} 35... Rd1# {[%clk 0:00:27.3]} 0-1

[Event "Betsys MČR v online bleskovém šachu 2021"]
[Site "Chess.com"]
[Date "2021.04.17"]
[Round "8"]
[White "Mikkes33"]
[Black "MiroslavBucek"]
[Result "1-0"]
[WhiteElo "1518"]
[BlackElo "1603"]
[TimeControl "180+1"]
[EndTime "10:20:58 PDT"]
[Termination "Uživatel Mikkes33 zvítězil matem"]

1. e4 {[%clk 0:02:59.9]} 1... e5 {[%clk 0:03:00]} 2. Nf3 {[%clk 0:02:58.8]} 2...
Nc6 {[%clk 0:03:00.2]} 3. Bb5 {[%clk 0:02:57.9]} 3... a6 {[%clk 0:02:59.5]} 4.
Ba4 {[%clk 0:02:57.4]} 4... Nf6 {[%clk 0:02:59.6]} 5. O-O {[%clk 0:02:56.6]}
5... Nxe4 {[%clk 0:02:59.8]} 6. Re1 {[%clk 0:02:52.3]} 6... Nc5 {[%clk
0:02:59.8]} 7. Bxc6 {[%clk 0:02:50.6]} 7... dxc6 {[%clk 0:02:59.5]} 8. Nxe5
{[%clk 0:02:49.9]} 8... Ne6 {[%clk 0:02:59.7]} 9. d4 {[%clk 0:02:44]} 9... Bd6
{[%clk 0:02:59.5]} 10. c3 {[%clk 0:02:31.6]} 10... O-O {[%clk 0:02:59.2]} 11. f4
{[%clk 0:02:23]} 11... f6 {[%clk 0:02:57.1]} 12. Nf3 {[%clk 0:01:49.5]} 12...
Nxf4 {[%clk 0:02:50]} 13. Bxf4 {[%clk 0:01:36.5]} 13... Bxf4 {[%clk 0:02:49.4]}
14. Qb3+ {[%clk 0:01:33.4]} 14... Kh8 {[%clk 0:02:49.1]} 15. Nbd2 {[%clk
0:01:17.9]} 15... b5 {[%clk 0:02:42.8]} 16. Ne4 {[%clk 0:01:14.9]} 16... Bg4
{[%clk 0:02:37.5]} 17. Nc5 {[%clk 0:01:08.3]} 17... Qd5 {[%clk 0:02:21]} 18.
Qxd5 {[%clk 0:00:55.9]} 18... cxd5 {[%clk 0:02:20.9]} 19. Re7 {[%clk 0:00:48.7]}
19... Bxf3 {[%clk 0:02:15.6]} 20. gxf3 {[%clk 0:00:46.7]} 20... Rfe8 {[%clk
0:02:11.8]} 21. Rae1 {[%clk 0:00:43.9]} 21... Rxe7 {[%clk 0:02:10]} 22. Rxe7
{[%clk 0:00:42.5]} 22... h5 {[%clk 0:01:59.4]} 23. Ne6 {[%clk 0:00:40.9]} 23...
Rg8 {[%clk 0:01:52.5]} 24. Nxc7 {[%clk 0:00:38.5]} 24... Bxc7 {[%clk 0:01:51]}
25. Rxc7 {[%clk 0:00:37.8]} 25... Re8 {[%clk 0:01:50.5]} 26. Kf2 {[%clk
0:00:35.8]} 26... Re6 {[%clk 0:01:44.5]} 27. Rd7 {[%clk 0:00:32.6]} 27... g5
{[%clk 0:01:41.5]} 28. Rxd5 {[%clk 0:00:31.7]} 28... Kg7 {[%clk 0:01:41.6]} 29.
Rd7+ {[%clk 0:00:29.6]} 29... Kg6 {[%clk 0:01:41.6]} 30. d5 {[%clk 0:00:26.4]}
30... Re5 {[%clk 0:01:30.2]} 31. d6 {[%clk 0:00:24.8]} 31... f5 {[%clk 0:01:30]}
32. Ra7 {[%clk 0:00:22.6]} 32... g4 {[%clk 0:01:24.3]} 33. Rxa6 {[%clk
0:00:20.9]} 33... f4 {[%clk 0:01:22.3]} 34. d7+ {[%clk 0:00:19.7]} 34... Kf7
{[%clk 0:01:20.4]} 35. d8=Q {[%clk 0:00:18.6]} 35... g3+ {[%clk 0:01:17.5]} 36.
hxg3 {[%clk 0:00:17.8]} 36... fxg3+ {[%clk 0:01:17.3]} 37. Kxg3 {[%clk
0:00:17.6]} 37... Re7 {[%clk 0:01:14.8]} 38. Qd5+ {[%clk 0:00:15.3]} 38... Ke8
{[%clk 0:01:13.9]} 39. Qg8+ {[%clk 0:00:13.9]} 39... Kd7 {[%clk 0:01:13.6]} 40.
Ra7+ {[%clk 0:00:13.5]} 40... Kd6 {[%clk 0:01:13.7]} 41. Qg6+ {[%clk 0:00:09.6]}
41... Kc5 {[%clk 0:01:10.9]} 42. Rxe7 {[%clk 0:00:07.4]} 42... Kd5 {[%clk
0:01:10.1]} 43. Qf5+ {[%clk 0:00:06.9]} 43... Kc4 {[%clk 0:01:10]} 44. Re4+
{[%clk 0:00:06.3]} 44... Kd3 {[%clk 0:01:04.6]} 45. Rd4+ {[%clk 0:00:06.4]}
45... Ke2 {[%clk 0:01:02]} 46. Qe4+ {[%clk 0:00:06.3]} 46... Kf1 {[%clk
0:01:01.6]} 47. Rd1# {[%clk 0:00:05.9]} 1-0

[Event "Betsys MČR v online bleskovém šachu 2021"]
[Site "Chess.com"]
[Date "2021.04.17"]
[Round "8"]
[White "YoungMegaMind"]
[Black "domecek"]
[Result "1-0"]
[WhiteElo "2228"]
[BlackElo "1973"]
[TimeControl "180+1"]
[EndTime "10:21:01 PDT"]
[Termination "Uživatel YoungMegaMind zvítězil matem"]

1. Nf3 {[%clk 0:03:00.6]} 1... Nf6 {[%clk 0:02:58.7]} 2. e3 {[%clk 0:03:00.1]}
2... d5 {[%clk 0:02:57.9]} 3. b3 {[%clk 0:03:00.2]} 3... g6 {[%clk 0:02:57.4]}
4. Bb2 {[%clk 0:03:00.3]} 4... Bg7 {[%clk 0:02:57.8]} 5. c4 {[%clk 0:03:00.4]}
5... c6 {[%clk 0:02:56.8]} 6. Nc3 {[%clk 0:03:00.1]} 6... O-O {[%clk 0:02:56.7]}
7. Rc1 {[%clk 0:03:00]} 7... b6 {[%clk 0:02:55.5]} 8. d4 {[%clk 0:02:55.2]} 8...
Bb7 {[%clk 0:02:55.3]} 9. Be2 {[%clk 0:02:52.8]} 9... Nbd7 {[%clk 0:02:54.2]}
10. O-O {[%clk 0:02:52.6]} 10... e6 {[%clk 0:02:53.1]} 11. cxd5 {[%clk
0:02:52.8]} 11... exd5 {[%clk 0:02:46.8]} 12. Ba3 {[%clk 0:02:51.9]} 12... Re8
{[%clk 0:02:46]} 13. Bd3 {[%clk 0:02:49.6]} 13... Bf8 {[%clk 0:02:44.9]} 14.
Bxf8 {[%clk 0:02:48.5]} 14... Nxf8 {[%clk 0:02:44.9]} 15. Qe2 {[%clk 0:02:47.5]}
15... Ne6 {[%clk 0:02:42.6]} 16. Ba6 {[%clk 0:02:46.8]} 16... Qc8 {[%clk
0:02:39.6]} 17. Bxb7 {[%clk 0:02:44]} 17... Qxb7 {[%clk 0:02:40.5]} 18. Na4
{[%clk 0:02:41.5]} 18... Rac8 {[%clk 0:02:36.8]} 19. Nc3 {[%clk 0:02:37.6]}
19... h5 {[%clk 0:02:34.9]} 20. Rfd1 {[%clk 0:02:37.3]} 20... Kg7 {[%clk
0:02:34.1]} 21. h3 {[%clk 0:02:37.5]} 21... Rc7 {[%clk 0:02:19.9]} 22. Qb2
{[%clk 0:02:35.6]} 22... Kg8 {[%clk 0:02:18.6]} 23. b4 {[%clk 0:02:34.3]} 23...
Rec8 {[%clk 0:02:16.7]} 24. a4 {[%clk 0:02:30.8]} 24... Nd7 {[%clk 0:02:08.8]}
25. Qb3 {[%clk 0:02:25.1]} 25... Nf6 {[%clk 0:01:52.2]} 26. Ne5 {[%clk
0:02:10.4]} 26... Nd7 {[%clk 0:01:50.7]} 27. Nxd7 {[%clk 0:02:07.5]} 27... Rxd7
{[%clk 0:01:51.6]} 28. b5 {[%clk 0:02:04.4]} 28... c5 {[%clk 0:01:49.9]} 29.
dxc5 {[%clk 0:02:04]} 29... bxc5 {[%clk 0:01:49.4]} 30. Nxd5 {[%clk 0:02:01.7]}
30... c4 {[%clk 0:01:35.7]} 31. Nf6+ {[%clk 0:01:59.4]} 31... Kg7 {[%clk
0:01:34.8]} 32. Qc3 {[%clk 0:01:58]} 32... Rxd1+ {[%clk 0:01:23]} 33. Rxd1
{[%clk 0:01:56.8]} 33... Kh6 {[%clk 0:01:19.6]} 34. Rd7 {[%clk 0:01:51.6]} 34...
Rc7 {[%clk 0:01:05.5]} 35. Rxc7 {[%clk 0:01:51.2]} 35... Qxc7 {[%clk 0:01:05.7]}
36. Nd5 {[%clk 0:01:51.3]} 36... Qc5 {[%clk 0:01:02.3]} 37. Qh8+ {[%clk
0:01:43.6]} 37... Kg5 {[%clk 0:01:01.1]} 38. h4+ {[%clk 0:01:36.6]} 38... Kxh4
{[%clk 0:00:55.9]} 39. Qf6+ {[%clk 0:01:34.8]} 39... g5 {[%clk 0:00:48.2]} 40.
g3+ {[%clk 0:01:31]} 40... Kh3 {[%clk 0:00:45.3]} 41. Qf5+ {[%clk 0:01:28.7]}
41... g4 {[%clk 0:00:40]} 42. Qxh5# {[%clk 0:00:16.1]} 1-0

[Event "Betsys MČR v online bleskovém šachu 2021"]
[Site "Chess.com"]
[Date "2021.04.17"]
[Round "8"]
[White "Zavurka1975"]
[Black "elftom"]
[Result "1-0"]
[WhiteElo "2210"]
[BlackElo "1971"]
[TimeControl "180+1"]
[EndTime "10:21:03 PDT"]
[Termination "Uživatel Zavurka1975 zvítězil matem"]

1. d4 {[%clk 0:03:00.9]} 1... Nf6 {[%clk 0:02:56.1]} 2. Nf3 {[%clk 0:03:00.7]}
2... c6 {[%clk 0:02:55.1]} 3. e3 {[%clk 0:03:00.2]} 3... d5 {[%clk 0:02:54.3]}
4. c4 {[%clk 0:02:59.8]} 4... e6 {[%clk 0:02:54.1]} 5. Nc3 {[%clk 0:02:59.5]}
5... Nbd7 {[%clk 0:02:53.8]} 6. Bd3 {[%clk 0:02:59.4]} 6... Bd6 {[%clk
0:02:53.4]} 7. O-O {[%clk 0:02:56.1]} 7... O-O {[%clk 0:02:53.4]} 8. e4 {[%clk
0:02:56.1]} 8... dxe4 {[%clk 0:02:52.2]} 9. Nxe4 {[%clk 0:02:56]} 9... Nxe4
{[%clk 0:02:51.2]} 10. Bxe4 {[%clk 0:02:56]} 10... h6 {[%clk 0:02:45.4]} 11. Qe2
{[%clk 0:02:51.3]} 11... c5 {[%clk 0:02:38.9]} 12. dxc5 {[%clk 0:02:34.5]} 12...
Bxc5 {[%clk 0:02:34.1]} 13. Rd1 {[%clk 0:02:27.2]} 13... Qc7 {[%clk 0:02:32.9]}
14. b3 {[%clk 0:02:23.9]} 14... Nf6 {[%clk 0:02:29.9]} 15. Bc2 {[%clk
0:02:20.7]} 15... Rd8 {[%clk 0:02:25]} 16. Bb2 {[%clk 0:02:20.1]} 16... Be7
{[%clk 0:02:24.5]} 17. Ne5 {[%clk 0:02:16.6]} 17... b6 {[%clk 0:02:15.5]} 18.
Ng4 {[%clk 0:02:11.7]} 18... Qf4 {[%clk 0:01:31.6]} 19. Nxf6+ {[%clk 0:01:56.4]}
19... Bxf6 {[%clk 0:01:31]} 20. Rxd8+ {[%clk 0:01:39.1]} 20... Bxd8 {[%clk
0:01:29.7]} 21. Qd3 {[%clk 0:01:37.7]} 21... Bc7 {[%clk 0:00:59.3]} 22. Qh7+
{[%clk 0:01:13.1]} 22... Kf8 {[%clk 0:00:58.4]} 23. Qxg7+ {[%clk 0:00:55.5]}
23... Ke8 {[%clk 0:00:53.2]} 24. g3 {[%clk 0:00:23.5]} 24... Qf3 {[%clk
0:00:52.8]} 25. Qg8+ {[%clk 0:00:16.9]} 25... Ke7 {[%clk 0:00:49.9]} 26. Ba3+
{[%clk 0:00:15.2]} 26... Kf6 {[%clk 0:00:46.2]} 27. Qh8+ {[%clk 0:00:14.3]}
27... Kg5 {[%clk 0:00:42.8]} 28. Qg7+ {[%clk 0:00:11.2]} 28... Kh5 {[%clk
0:00:37.4]} 29. Bd1 {[%clk 0:00:11.1]} 29... Bb7 {[%clk 0:00:25.9]} 30. Bxf3+
{[%clk 0:00:09]} 30... Bxf3 {[%clk 0:00:26.3]} 31. Qxf7+ {[%clk 0:00:09]} 31...
Kg4 {[%clk 0:00:26.3]} 32. h3+ {[%clk 0:00:09.3]} 32... Kxh3 {[%clk 0:00:25.8]}
33. Qxf3 {[%clk 0:00:09.2]} 33... Rg8 {[%clk 0:00:25.5]} 34. Qh5# {[%clk
0:00:08.9]} 1-0